[Event "Titled Tuesday Blitz November 14 Early 2023"]
[White "Demin, Vladimir"]
[Black "Weetik, Vjacheslav"]
[WhiteFideId "4167457"]
[BlackFideId "4153472"]
[WhiteElo "2591"]
[BlackElo "2844"]
[Result "1-0"]
[Round "3"]
[TimeControl "180+1"]
[Date "2023.11.14"]
[WhiteClock "0:00:53"]
[BlackClock "0:00:21"]
[Board "40"]

1. d4 {[%clk 0:03:00]}  Nf6 {[%clk 0:03:00]} 2. Nc3 {[%clk 0:03:01]}  d5 {[%clk 0:03:00]} 3. Bf4 {[%clk 0:03:01]}  c5 {[%clk 0:03:00]} 4. e4 {[%clk 0:03:01]}  Nxe4 {[%clk 0:03:00]} 5. Nxe4 {[%clk 0:03:01]}  dxe4 {[%clk 0:03:00]} 6. dxc5 {[%clk 0:03:02]}  Qa5+ {[%clk 0:02:59]} 7. c3 {[%clk 0:03:02]}  Qxc5 {[%clk 0:02:59]} 8. Qa4+ {[%clk 0:03:03]}  Nc6 {[%clk 0:03:00]} 9. Qxe4 {[%clk 0:03:04]}  g6 {[%clk 0:03:01]} 10. Nf3 {[%clk 0:03:03]}  Bg7 {[%clk 0:03:01]} 11. Qe3 {[%clk 0:03:04]}  Qxe3+ {[%clk 0:02:51]} 12. Bxe3 {[%clk 0:03:05]}  O-O {[%clk 0:02:45]} 13. Be2 {[%clk 0:03:04]}  Rd8 {[%clk 0:02:45]} 14. O-O {[%clk 0:03:04]}  Bf5 {[%clk 0:02:43]} 15. a4 {[%clk 0:03:02]}  Bd3 {[%clk 0:02:35]} 16. Bxd3 {[%clk 0:02:58]}  Rxd3 {[%clk 0:02:36]} 17. a5 {[%clk 0:02:58]}  Rad8 {[%clk 0:02:33]} 18. a6 {[%clk 0:02:58]}  b6 {[%clk 0:02:33]} 19. Rfe1 {[%clk 0:02:54]}  e5 {[%clk 0:02:32]} 20. Kf1 {[%clk 0:02:53]}  f5 {[%clk 0:02:29]} 21. Ke2 {[%clk 0:02:49]}  f4 {[%clk 0:02:20]} 22. Bxb6 {[%clk 0:01:58]}  axb6 {[%clk 0:02:18]} 23. a7 {[%clk 0:01:58]}  Nxa7 {[%clk 0:02:09]} 24. Rxa7 {[%clk 0:01:59]}  e4 {[%clk 0:02:10]} 25. Ng5 {[%clk 0:01:49]}  e3 {[%clk 0:01:51]} 26. Rxg7+ {[%clk 0:01:37]}  Kxg7 {[%clk 0:01:50]} 27. Ne6+ {[%clk 0:01:37]}  Kf6 {[%clk 0:01:51]} 28. Nxd8 {[%clk 0:01:38]}  Rd2+ {[%clk 0:01:36]} 29. Kf1 {[%clk 0:01:26]}  Rxf2+ {[%clk 0:01:10]} 30. Kg1 {[%clk 0:01:26]}  Rxb2 {[%clk 0:01:11]} 31. Nc6 {[%clk 0:01:16]}  g5 {[%clk 0:01:11]} 32. Nb4 {[%clk 0:01:14]}  Kf5 {[%clk 0:01:06]} 33. Ra1 {[%clk 0:01:07]}  g4 {[%clk 0:01:05]} 34. Rf1 {[%clk 0:01:00]}  Ke4 {[%clk 0:01:04]} 35. Rxf4+ {[%clk 0:00:56]}  Kxf4 {[%clk 0:00:49]} 36. Nd3+ {[%clk 0:00:55]}  Ke4 {[%clk 0:00:46]} 37. Nxb2 {[%clk 0:00:56]}  b5 {[%clk 0:00:24]} 38. Kf1 {[%clk 0:00:54]}  h5 {[%clk 0:00:23]} 39. Ke2 {[%clk 0:00:54]}  h4 {[%clk 0:00:21]} 40. Nd1 {[%clk 0:00:53]} 1-0


[Site "https://www.chess.com"]

[Event "Titled Tuesday Blitz November 14 Early 2023"]
[White "Alexandre, Anne Shopie Elizabeth"]
[Black "Baches Garcia, Guillermo"]
[WhiteFideId "11902418"]
[BlackFideId "2209764"]
[WhiteElo "2828"]
[BlackElo "2534"]
[Result "1-0"]
[Round "3"]
[TimeControl "180+1"]
[Date "2023.11.14"]
[WhiteClock "0:00:45"]
[BlackClock "0:00:00"]
[Board "44"]

1. c4 {[%clk 0:03:00]}  e6 {[%clk 0:02:59]} 2. Nf3 {[%clk 0:02:59]}  d5 {[%clk 0:02:59]} 3. e3 {[%clk 0:03:00]}  Nf6 {[%clk 0:02:57]} 4. b3 {[%clk 0:02:59]}  Be7 {[%clk 0:02:51]} 5. Bb2 {[%clk 0:03:00]}  O-O {[%clk 0:02:51]} 6. g3 {[%clk 0:02:58]}  b6 {[%clk 0:02:42]} 7. cxd5 {[%clk 0:02:57]}  exd5 {[%clk 0:02:40]} 8. Bg2 {[%clk 0:02:57]}  Ba6 {[%clk 0:02:34]} 9. d3 {[%clk 0:02:43]}  c5 {[%clk 0:02:33]} 10. O-O {[%clk 0:02:43]}  Nc6 {[%clk 0:02:33]} 11. Re1 {[%clk 0:02:38]}  Re8 {[%clk 0:02:21]} 12. a3 {[%clk 0:02:31]}  Qd7 {[%clk 0:02:12]} 13. Nc3 {[%clk 0:02:30]}  Rad8 {[%clk 0:02:10]} 14. Ne2 {[%clk 0:02:30]}  c4 {[%clk 0:01:51]} 15. dxc4 {[%clk 0:02:26]}  dxc4 {[%clk 0:01:49]} 16. bxc4 {[%clk 0:02:23]}  Qxd1 {[%clk 0:01:22]} 17. Rexd1 {[%clk 0:02:22]}  Bxc4 {[%clk 0:01:18]} 18. Nf4 {[%clk 0:02:21]}  Na5 {[%clk 0:01:11]} 19. Ne5 {[%clk 0:02:19]}  Bb3 {[%clk 0:01:08]} 20. Rxd8 {[%clk 0:02:17]}  Rxd8 {[%clk 0:01:07]} 21. Bc3 {[%clk 0:02:18]}  Bf8 {[%clk 0:00:50]} 22. Bxa5 {[%clk 0:02:15]}  bxa5 {[%clk 0:00:50]} 23. Nc6 {[%clk 0:02:15]}  Rd2 {[%clk 0:00:44]} 24. Nxa5 {[%clk 0:02:14]}  Bc2 {[%clk 0:00:36]} 25. Nc6 {[%clk 0:02:07]}  Ne4 {[%clk 0:00:28]} 26. Nh3 {[%clk 0:01:45]}  Bc5 {[%clk 0:00:25]} 27. Nb4 {[%clk 0:01:35]}  Nc3 {[%clk 0:00:16]} 28. Nxc2 {[%clk 0:01:33]}  Rxc2 {[%clk 0:00:17]} 29. Nf4 {[%clk 0:01:26]}  g6 {[%clk 0:00:15]} 30. Bf3 {[%clk 0:01:22]}  a5 {[%clk 0:00:15]} 31. a4 {[%clk 0:01:20]}  Bb4 {[%clk 0:00:13]} 32. Nd5 {[%clk 0:01:16]}  Nxd5 {[%clk 0:00:12]} 33. Bxd5 {[%clk 0:01:17]}  Re2 {[%clk 0:00:12]} 34. Kg2 {[%clk 0:01:15]}  Re1 {[%clk 0:00:11]} 35. Ra2 {[%clk 0:01:15]}  Rc1 {[%clk 0:00:09]} 36. e4 {[%clk 0:01:03]}  Kg7 {[%clk 0:00:09]} 37. h4 {[%clk 0:01:03]}  Rc7 {[%clk 0:00:09]} 38. Re2 {[%clk 0:01:00]}  h5 {[%clk 0:00:09]} 39. f4 {[%clk 0:00:59]}  Bc3 {[%clk 0:00:08]} 40. e5 {[%clk 0:00:56]}  Bb4 {[%clk 0:00:08]} 41. e6 {[%clk 0:00:53]}  fxe6 {[%clk 0:00:07]} 42. Rxe6 {[%clk 0:00:54]}  Re7 {[%clk 0:00:07]} 43. Rc6 {[%clk 0:00:54]}  Rd7 {[%clk 0:00:06]} 44. Be4 {[%clk 0:00:53]}  Rd6 {[%clk 0:00:07]} 45. Rc4 {[%clk 0:00:53]}  Kf6 {[%clk 0:00:06]} 46. Kf3 {[%clk 0:00:53]}  Rb6 {[%clk 0:00:07]} 47. Rc8 {[%clk 0:00:52]}  Rd6 {[%clk 0:00:07]} 48. Rg8 {[%clk 0:00:51]}  Kf7 {[%clk 0:00:06]} 49. Ra8 {[%clk 0:00:51]}  Kf6 {[%clk 0:00:06]} 50. Ra7 {[%clk 0:00:51]}  Rb6 {[%clk 0:00:05]} 51. Rh7 {[%clk 0:00:49]}  Rd6 {[%clk 0:00:04]} 52. Rc7 {[%clk 0:00:47]}  Rb6 {[%clk 0:00:04]} 53. Ra7 {[%clk 0:00:46]}  Rd6 {[%clk 0:00:03]} 54. Rh7 {[%clk 0:00:46]}  Rb6 {[%clk 0:00:01]} 55. f5 {[%clk 0:00:46]}  gxf5 {[%clk 0:00:00]} 56. Rh6+ {[%clk 0:00:45]} 1-0


[Site "https://www.chess.com"]

[Event "Titled Tuesday Blitz November 14 Early 2023"]
[White "Vakhlamov, Igor L."]
[Black "Begunov, Konstantin"]
[WhiteFideId "24126748"]
[BlackFideId "4118510"]
[WhiteElo "2822"]
[BlackElo "2434"]
[Result "0-1"]
[Round "3"]
[TimeControl "180+1"]
[Date "2023.11.14"]
[WhiteClock "0:00:13"]
[BlackClock "0:00:22"]
[Board "48"]

1. e4 {[%clk 0:03:00]}  c5 {[%clk 0:02:59]} 2. Nf3 {[%clk 0:03:01]}  d6 {[%clk 0:03:00]} 3. Nc3 {[%clk 0:03:01]}  a6 {[%clk 0:03:00]} 4. d4 {[%clk 0:03:01]}  cxd4 {[%clk 0:03:01]} 5. Qxd4 {[%clk 0:03:02]}  Nc6 {[%clk 0:03:00]} 6. Qd3 {[%clk 0:03:02]}  Nf6 {[%clk 0:02:59]} 7. Nd5 {[%clk 0:03:02]}  e6 {[%clk 0:02:41]} 8. Nxf6+ {[%clk 0:03:02]}  Qxf6 {[%clk 0:02:40]} 9. Be2 {[%clk 0:03:02]}  Qd8 {[%clk 0:02:36]} 10. O-O {[%clk 0:03:02]}  Be7 {[%clk 0:02:36]} 11. Rd1 {[%clk 0:03:02]}  O-O {[%clk 0:02:35]} 12. Bf4 {[%clk 0:03:03]}  e5 {[%clk 0:02:31]} 13. Be3 {[%clk 0:03:03]}  Be6 {[%clk 0:02:26]} 14. c3 {[%clk 0:03:03]}  b5 {[%clk 0:02:24]} 15. h3 {[%clk 0:02:40]}  h6 {[%clk 0:02:20]} 16. b4 {[%clk 0:02:27]}  Qc7 {[%clk 0:01:58]} 17. a4 {[%clk 0:02:24]}  Bb3 {[%clk 0:01:55]} 18. Rdc1 {[%clk 0:02:20]}  Bxa4 {[%clk 0:01:51]} 19. c4 {[%clk 0:01:54]}  bxc4 {[%clk 0:01:33]} 20. Qxc4 {[%clk 0:01:55]}  Bb5 {[%clk 0:01:32]} 21. Qc2 {[%clk 0:01:54]}  Bxe2 {[%clk 0:01:29]} 22. Qxe2 {[%clk 0:01:55]}  Qb7 {[%clk 0:01:29]} 23. Rab1 {[%clk 0:01:46]}  Nxb4 {[%clk 0:01:22]} 24. Nd2 {[%clk 0:01:44]}  a5 {[%clk 0:01:21]} 25. f3 {[%clk 0:01:41]}  Rfc8 {[%clk 0:01:20]} 26. Nc4 {[%clk 0:01:40]}  Qb5 {[%clk 0:01:16]} 27. Qf1 {[%clk 0:01:36]}  Rc6 {[%clk 0:01:08]} 28. Nd2 {[%clk 0:00:27]}  Qxf1+ {[%clk 0:01:06]} 29. Nxf1 {[%clk 0:00:28]}  Rxc1 {[%clk 0:01:05]} 30. Bxc1 {[%clk 0:00:29]}  d5 {[%clk 0:00:58]} 31. exd5 {[%clk 0:00:30]}  Nxd5 {[%clk 0:00:58]} 32. Rb5 {[%clk 0:00:29]}  Nc3 {[%clk 0:00:47]} 33. Rxe5 {[%clk 0:00:28]}  Bf6 {[%clk 0:00:47]} 34. Re1 {[%clk 0:00:27]}  a4 {[%clk 0:00:42]} 35. Nd2 {[%clk 0:00:16]}  a3 {[%clk 0:00:31]} 36. Nb3 {[%clk 0:00:16]}  a2 {[%clk 0:00:29]} 37. Bb2 {[%clk 0:00:15]}  Rb8 {[%clk 0:00:26]} 38. Bxc3 {[%clk 0:00:08]}  Bxc3 {[%clk 0:00:21]} 39. Re2 {[%clk 0:00:08]}  Rxb3 {[%clk 0:00:19]} 40. Rxa2 {[%clk 0:00:09]}  g6 {[%clk 0:00:18]} 41. Kf2 {[%clk 0:00:09]}  Kg7 {[%clk 0:00:19]} 42. Ra4 {[%clk 0:00:09]}  Bf6 {[%clk 0:00:18]} 43. Kg3 {[%clk 0:00:09]}  Rd3 {[%clk 0:00:17]} 44. Re4 {[%clk 0:00:10]}  Rd4 {[%clk 0:00:17]} 45. Re2 {[%clk 0:00:10]}  Bh4+ {[%clk 0:00:17]} 46. Kh2 {[%clk 0:00:11]}  h5 {[%clk 0:00:17]} 47. Rc2 {[%clk 0:00:11]}  Bg5 {[%clk 0:00:16]} 48. Kg3 {[%clk 0:00:10]}  h4+ {[%clk 0:00:16]} 49. Kf2 {[%clk 0:00:09]}  Bf4 {[%clk 0:00:16]} 50. Ke2 {[%clk 0:00:08]}  Rb4 {[%clk 0:00:14]} 51. Ra2 {[%clk 0:00:08]}  g5 {[%clk 0:00:14]} 52. Rc2 {[%clk 0:00:08]}  Kg6 {[%clk 0:00:14]} 53. Rc6+ {[%clk 0:00:08]}  f6 {[%clk 0:00:14]} 54. Rc2 {[%clk 0:00:09]}  Be5 {[%clk 0:00:14]} 55. Kf1 {[%clk 0:00:08]}  Rb1+ {[%clk 0:00:14]} 56. Ke2 {[%clk 0:00:07]}  Rb2 {[%clk 0:00:15]} 57. Rd2 {[%clk 0:00:08]}  Rxd2+ {[%clk 0:00:15]} 58. Kxd2 {[%clk 0:00:09]}  Kf5 {[%clk 0:00:15]} 59. f4 {[%clk 0:00:09]}  Kxf4 {[%clk 0:00:16]} 60. Ke2 {[%clk 0:00:09]}  Kg3 {[%clk 0:00:17]} 61. Kf1 {[%clk 0:00:10]}  Bd4 {[%clk 0:00:17]} 62. Ke2 {[%clk 0:00:10]}  Kxg2 {[%clk 0:00:18]} 63. Kd3 {[%clk 0:00:10]}  Kxh3 {[%clk 0:00:19]} 64. Ke4 {[%clk 0:00:11]}  g4 {[%clk 0:00:20]} 65. Kf5 {[%clk 0:00:12]}  g3 {[%clk 0:00:20]} 66. Ke4 {[%clk 0:00:12]}  g2 {[%clk 0:00:21]} 67. Kf3 {[%clk 0:00:13]}  g1=Q {[%clk 0:00:22]} 68. Kf4 {[%clk 0:00:13]}  Qg4# {[%clk 0:00:22]} 0-1


[Site "https://www.chess.com"]

[Event "Titled Tuesday Blitz November 14 Early 2023"]
[White "Lacasa Diaz, Jose Antonio"]
[Black "Maksimovic, Bojan"]
[WhiteFideId "2203375"]
[BlackFideId "14408120"]
[WhiteElo "2345"]
[BlackElo "2822"]
[Result "1-0"]
[Round "3"]
[TimeControl "180+1"]
[Date "2023.11.14"]
[WhiteClock "0:00:07"]
[BlackClock "0:00:00"]
[Board "49"]

1. e4 {[%clk 0:02:53]}  g6 {[%clk 0:02:59]} 2. d4 {[%clk 0:02:51]}  Nf6 {[%clk 0:02:59]} 3. Nc3 {[%clk 0:02:49]}  d5 {[%clk 0:02:58]} 4. exd5 {[%clk 0:02:46]}  Nxd5 {[%clk 0:02:58]} 5. Nxd5 {[%clk 0:02:45]}  Qxd5 {[%clk 0:02:58]} 6. c3 {[%clk 0:02:46]}  Bg7 {[%clk 0:02:58]} 7. Nf3 {[%clk 0:02:45]}  c5 {[%clk 0:02:57]} 8. dxc5 {[%clk 0:02:41]}  Qxc5 {[%clk 0:02:50]} 9. Be3 {[%clk 0:02:38]}  Qc7 {[%clk 0:02:50]} 10. Bb5+ {[%clk 0:02:29]}  Nd7 {[%clk 0:02:48]} 11. O-O {[%clk 0:02:21]}  O-O {[%clk 0:02:48]} 12. a4 {[%clk 0:02:19]}  a6 {[%clk 0:02:42]} 13. Be2 {[%clk 0:02:13]}  b6 {[%clk 0:02:42]} 14. Qd2 {[%clk 0:01:57]}  Bb7 {[%clk 0:02:39]} 15. Bh6 {[%clk 0:01:55]}  Rad8 {[%clk 0:02:30]} 16. Bxg7 {[%clk 0:01:54]}  Kxg7 {[%clk 0:02:31]} 17. Qe3 {[%clk 0:01:53]}  Qc5 {[%clk 0:02:29]} 18. Qxc5 {[%clk 0:01:47]}  Nxc5 {[%clk 0:02:30]} 19. Rfd1 {[%clk 0:01:27]}  Rxd1+ {[%clk 0:02:08]} 20. Rxd1 {[%clk 0:01:24]}  Nxa4 {[%clk 0:02:08]} 21. Rd7 {[%clk 0:01:24]}  Bxf3 {[%clk 0:01:58]} 22. gxf3 {[%clk 0:01:17]}  e6 {[%clk 0:01:38]} 23. Bxa6 {[%clk 0:01:10]}  Nxb2 {[%clk 0:01:33]} 24. Rb7 {[%clk 0:01:08]}  Na4 {[%clk 0:01:27]} 25. c4 {[%clk 0:01:01]}  Ra8 {[%clk 0:00:43]} 26. Bb5 {[%clk 0:00:59]}  Kf6 {[%clk 0:00:43]} 27. Kg2 {[%clk 0:00:47]}  g5 {[%clk 0:00:40]} 28. h3 {[%clk 0:00:45]}  h5 {[%clk 0:00:26]} 29. Bxa4 {[%clk 0:00:45]}  Rxa4 {[%clk 0:00:25]} 30. Rxb6 {[%clk 0:00:45]}  Rxc4 {[%clk 0:00:25]} 31. Rb8 {[%clk 0:00:46]}  Kf5 {[%clk 0:00:25]} 32. Rh8 {[%clk 0:00:42]}  Kg6 {[%clk 0:00:15]} 33. Rg8+ {[%clk 0:00:39]}  Kf6 {[%clk 0:00:15]} 34. Rh8 {[%clk 0:00:39]}  h4 {[%clk 0:00:15]} 35. Rg8 {[%clk 0:00:37]}  Kf5 {[%clk 0:00:16]} 36. Rg7 {[%clk 0:00:33]}  f6 {[%clk 0:00:16]} 37. Rg8 {[%clk 0:00:28]}  Kf4 {[%clk 0:00:15]} 38. Rf8 {[%clk 0:00:25]}  f5 {[%clk 0:00:14]} 39. Re8 {[%clk 0:00:23]}  e5 {[%clk 0:00:14]} 40. Rg8 {[%clk 0:00:22]}  Rc3 {[%clk 0:00:12]} 41. Rf8 {[%clk 0:00:20]}  Ra3 {[%clk 0:00:08]} 42. Rf7 {[%clk 0:00:20]}  Rb3 {[%clk 0:00:05]} 43. Rf8 {[%clk 0:00:20]}  Rc3 {[%clk 0:00:06]} 44. Rf7 {[%clk 0:00:20]}  Rd3 {[%clk 0:00:07]} 45. Rf8 {[%clk 0:00:20]}  Rd4 {[%clk 0:00:03]} 46. Ra8 {[%clk 0:00:18]}  Rc4 {[%clk 0:00:02]} 47. Rb8 {[%clk 0:00:17]}  e4 {[%clk 0:00:02]} 48. fxe4 {[%clk 0:00:17]}  Rxe4 {[%clk 0:00:03]} 49. Rf8 {[%clk 0:00:16]}  Re5 {[%clk 0:00:03]} 50. Rf7 {[%clk 0:00:16]}  Rb5 {[%clk 0:00:03]} 51. Rf8 {[%clk 0:00:17]}  Rb3 {[%clk 0:00:03]} 52. Rf7 {[%clk 0:00:16]}  g4 {[%clk 0:00:03]} 53. hxg4 {[%clk 0:00:15]}  Kxg4 {[%clk 0:00:04]} 54. Rg7+ {[%clk 0:00:15]}  Kf4 {[%clk 0:00:04]} 55. Rg8 {[%clk 0:00:15]}  h3+ {[%clk 0:00:04]} 56. Kh2 {[%clk 0:00:15]}  Rd3 {[%clk 0:00:03]} 57. Rg7 {[%clk 0:00:14]}  Ke4 {[%clk 0:00:02]} 58. Rh7 {[%clk 0:00:12]}  f4 {[%clk 0:00:01]} 59. Rh5 {[%clk 0:00:07]}  Rc3 {[%clk 0:00:00]} 60. Rh4 {[%clk 0:00:07]} 1-0


[Site "https://www.chess.com"]

[Event "Titled Tuesday Blitz November 14 Early 2023"]
[White "Vignesh N R"]
[Black "DavitSantryan02"]
[WhiteFideId "25012215"]
[WhiteElo "2819"]
[BlackElo "1801"]
[Result "1-0"]
[Round "3"]
[TimeControl "180+1"]
[Date "2023.11.14"]
[WhiteClock "0:00:27"]
[BlackClock "0:00:01"]
[Board "50"]

1. Nf3 {[%clk 0:03:00]}  d5 {[%clk 0:02:59]} 2. g3 {[%clk 0:03:00]}  Nf6 {[%clk 0:02:58]} 3. Bg2 {[%clk 0:03:00]}  c6 {[%clk 0:02:59]} 4. O-O {[%clk 0:02:59]}  Bg4 {[%clk 0:03:00]} 5. c4 {[%clk 0:02:58]}  Nbd7 {[%clk 0:02:59]} 6. d3 {[%clk 0:02:54]}  e5 {[%clk 0:02:58]} 7. cxd5 {[%clk 0:02:52]}  cxd5 {[%clk 0:02:58]} 8. Nc3 {[%clk 0:02:52]}  Bd6 {[%clk 0:02:53]} 9. Qb3 {[%clk 0:02:48]}  Nb6 {[%clk 0:02:44]} 10. Bg5 {[%clk 0:02:42]}  Be6 {[%clk 0:02:40]} 11. Bxf6 {[%clk 0:02:17]}  Qxf6 {[%clk 0:02:35]} 12. Nd2 {[%clk 0:02:16]}  d4 {[%clk 0:01:51]} 13. Nce4 {[%clk 0:02:01]}  Bxb3 {[%clk 0:01:40]} 14. Nxf6+ {[%clk 0:02:00]}  gxf6 {[%clk 0:01:41]} 15. axb3 {[%clk 0:02:00]}  a5 {[%clk 0:01:33]} 16. Bxb7 {[%clk 0:01:58]}  Ra7 {[%clk 0:01:32]} 17. Bc6+ {[%clk 0:01:54]}  Ke7 {[%clk 0:01:32]} 18. Nc4 {[%clk 0:01:48]}  Nxc4 {[%clk 0:01:31]} 19. bxc4 {[%clk 0:01:49]}  Rb8 {[%clk 0:01:31]} 20. Bb5 {[%clk 0:01:49]}  Bb4 {[%clk 0:01:31]} 21. Ra4 {[%clk 0:01:48]}  Kd6 {[%clk 0:01:30]} 22. Rfa1 {[%clk 0:01:46]}  Kc5 {[%clk 0:01:30]} 23. Kg2 {[%clk 0:01:38]}  f5 {[%clk 0:01:30]} 24. Kf3 {[%clk 0:01:38]}  f6 {[%clk 0:01:31]} 25. h3 {[%clk 0:01:34]}  h5 {[%clk 0:01:31]} 26. g4 {[%clk 0:01:30]}  fxg4+ {[%clk 0:01:30]} 27. hxg4 {[%clk 0:01:30]}  hxg4+ {[%clk 0:01:29]} 28. Kxg4 {[%clk 0:01:29]}  Rg7+ {[%clk 0:01:29]} 29. Kf5 {[%clk 0:01:24]}  Rb6 {[%clk 0:01:28]} 30. Ke4 {[%clk 0:01:08]}  Rg4+ {[%clk 0:01:25]} 31. Kf3 {[%clk 0:01:06]}  Rf4+ {[%clk 0:01:25]} 32. Kg2 {[%clk 0:01:07]}  f5 {[%clk 0:01:24]} 33. Rh1 {[%clk 0:01:03]}  e4 {[%clk 0:01:17]} 34. Raa1 {[%clk 0:00:53]}  Rg6+ {[%clk 0:01:16]} 35. Kf1 {[%clk 0:00:53]}  exd3 {[%clk 0:01:07]} 36. exd3 {[%clk 0:00:53]}  Rg3 {[%clk 0:01:06]} 37. Rd1 {[%clk 0:00:48]}  Rg6 {[%clk 0:00:54]} 38. Rh5 {[%clk 0:00:43]}  Re6 {[%clk 0:00:50]} 39. Bd7 {[%clk 0:00:36]}  Rf6 {[%clk 0:00:38]} 40. Rg5 {[%clk 0:00:34]}  Kb6 {[%clk 0:00:32]} 41. Kg2 {[%clk 0:00:33]}  Bd6 {[%clk 0:00:25]} 42. Rh1 {[%clk 0:00:32]}  Kc5 {[%clk 0:00:18]} 43. Rhh5 {[%clk 0:00:31]}  Kb4 {[%clk 0:00:16]} 44. Rxf5 {[%clk 0:00:29]}  R6xf5 {[%clk 0:00:14]} 45. Bxf5 {[%clk 0:00:28]}  Kb3 {[%clk 0:00:12]} 46. Be6 {[%clk 0:00:25]}  Kxb2 {[%clk 0:00:09]} 47. Rxa5 {[%clk 0:00:22]}  Kc3 {[%clk 0:00:09]} 48. c5 {[%clk 0:00:22]}  Kb4 {[%clk 0:00:06]} 49. cxd6 {[%clk 0:00:19]}  Kxa5 {[%clk 0:00:06]} 50. d7 {[%clk 0:00:19]}  Rf8 {[%clk 0:00:07]} 51. f4 {[%clk 0:00:19]}  Kb6 {[%clk 0:00:06]} 52. Kf3 {[%clk 0:00:19]}  Kc6 {[%clk 0:00:05]} 53. Ke4 {[%clk 0:00:19]}  Kd6 {[%clk 0:00:05]} 54. f5 {[%clk 0:00:20]}  Kc5 {[%clk 0:00:03]} 55. Ke5 {[%clk 0:00:20]}  Rh8 {[%clk 0:00:02]} 56. f6 {[%clk 0:00:20]}  Rf8 {[%clk 0:00:02]} 57. f7 {[%clk 0:00:21]}  Ra8 {[%clk 0:00:02]} 58. Kf6 {[%clk 0:00:21]}  Kd6 {[%clk 0:00:03]} 59. Bf5 {[%clk 0:00:21]}  Rb8 {[%clk 0:00:02]} 60. Be4 {[%clk 0:00:21]}  Kxd7 {[%clk 0:00:02]} 61. Kg7 {[%clk 0:00:21]}  Ke7 {[%clk 0:00:02]} 62. Bd5 {[%clk 0:00:22]}  Rf8 {[%clk 0:00:03]} 63. Bc4 {[%clk 0:00:22]}  Rd8 {[%clk 0:00:03]} 64. Kg6 {[%clk 0:00:23]}  Rf8 {[%clk 0:00:04]} 65. Kf5 {[%clk 0:00:23]}  Rc8 {[%clk 0:00:04]} 66. Ke5 {[%clk 0:00:24]}  Rd8 {[%clk 0:00:05]} 67. Bd5 {[%clk 0:00:24]}  Rxd5+ {[%clk 0:00:02]} 68. Kxd5 {[%clk 0:00:25]}  Kxf7 {[%clk 0:00:03]} 69. Kxd4 {[%clk 0:00:25]}  Kf6 {[%clk 0:00:02]} 70. Kd5 {[%clk 0:00:25]}  Kf7 {[%clk 0:00:02]} 71. Kd6 {[%clk 0:00:25]}  Ke8 {[%clk 0:00:02]} 72. d4 {[%clk 0:00:26]}  Kd8 {[%clk 0:00:02]} 73. d5 {[%clk 0:00:26]}  Kc8 {[%clk 0:00:01]} 74. Ke7 {[%clk 0:00:27]} 1-0


[Site "https://www.chess.com"]

[Event "Titled Tuesday Blitz November 14 Early 2023"]
[White "Aravindh, Chithambaram VR."]
[Black "Nagare Kaivalya Sandip"]
[WhiteFideId "5072786"]
[BlackFideId "25957929"]
[WhiteElo "2950"]
[BlackElo "2681"]
[Result "1-0"]
[Round "3"]
[TimeControl "180+1"]
[Date "2023.11.14"]
[WhiteClock "0:01:26"]
[BlackClock "0:00:32"]
[Board "51"]

1. b3 {[%clk 0:03:00]}  e5 {[%clk 0:02:58]} 2. Bb2 {[%clk 0:03:00]}  Nc6 {[%clk 0:02:58]} 3. c4 {[%clk 0:03:01]}  Nf6 {[%clk 0:02:57]} 4. Nf3 {[%clk 0:03:02]}  Bc5 {[%clk 0:02:57]} 5. e3 {[%clk 0:03:00]}  e4 {[%clk 0:02:52]} 6. Nd4 {[%clk 0:03:00]}  O-O {[%clk 0:02:51]} 7. Nf5 {[%clk 0:02:58]}  d5 {[%clk 0:02:47]} 8. cxd5 {[%clk 0:02:59]}  Qxd5 {[%clk 0:02:31]} 9. Ng3 {[%clk 0:02:40]}  Ne5 {[%clk 0:02:11]} 10. Nc3 {[%clk 0:02:37]}  Nd3+ {[%clk 0:02:10]} 11. Bxd3 {[%clk 0:02:36]}  Qxd3 {[%clk 0:02:10]} 12. Rc1 {[%clk 0:02:30]}  Bd6 {[%clk 0:02:02]} 13. Na4 {[%clk 0:02:24]}  Ng4 {[%clk 0:01:57]} 14. Nc5 {[%clk 0:02:18]}  Bxc5 {[%clk 0:01:51]} 15. Rxc5 {[%clk 0:02:19]}  c6 {[%clk 0:01:35]} 16. h3 {[%clk 0:01:42]}  Nh6 {[%clk 0:00:40]} 17. Ne2 {[%clk 0:01:38]}  f5 {[%clk 0:00:37]} 18. O-O {[%clk 0:01:37]}  Qd8 {[%clk 0:00:36]} 19. Nf4 {[%clk 0:01:32]}  Qh4 {[%clk 0:00:35]} 20. d3 {[%clk 0:01:29]}  g5 {[%clk 0:00:34]} 21. g3 {[%clk 0:01:26]}  gxf4 {[%clk 0:00:32]} 22. gxh4 {[%clk 0:01:26]} 1-0


[Site "https://www.chess.com"]